Cogmind - Beta 16 @@@ ROGUE MODE // 2026.01.07 @ 20:20:31 Player: PE-P51 Result: Destroyed by H-61 Shepherd with Heavy Assault Cannon Performance ------------- Evolutions (2) 1000 Regions Visited (7) 1400 Robots Destroyed (171) 855 Value Destroyed (4307) 4307 Prototype IDs (32) 640 Alien Tech Used (0) 0 Bonus (480) 480 TOTAL SCORE: 8682 Bonus ------- High Alert Combat Kills 180 Aligned with FarCom 300 Cogmind --------- Core Integrity 0/550 Matter 300/300 Energy 99/100 System Corruption 0% Temperature Cool (0) Movement Core (50) Location -8/Materials Parts ------- > --- POWER (1) -------- (None) > --- PROPULSION (4) --- (None) > --- UTILITY (4) ------ (None) > --- WEAPON (2) ------- (None) > --- INVENTORY (5) ---- Improved Flight Unit Surge Thruster Transmission Jammer Hacking Suite Improved Grenade Launcher Peak State ------------ > --- POWER ------------ Micro Nuclear Core > --- PROPULSION ------- Light Treads Light Treads Light Treads Armored Treads > --- UTILITY ---------- Large Storage Unit Advanced Targeting Computer Advanced Targeting Computer Hardened Medium Armor Plating > --- WEAPON ----------- Heavy Assault Rifle Flak Cannon > --- INVENTORY -------- Cooled Ion Engine Micro Nuclear Core Improved Flight Unit Surge Thruster Surge Thruster Surge Thruster Surge Thruster Experimental Sensor Array Transmission Jammer Hacking Suite Hacking Suite Chronowheel Mini Grenade Launcher Improved Grenade Launcher Axe [Rating: 31] Favorites ----------- Power Heavy Ion Engine Engine Heavy Ion Engine Power Core Light Nuclear Core Propulsion Light Treads Treads Light Treads Leg Aluminum Leg Wheel Wheel Utility Large Storage Unit Device Heat Sink Storage Large Storage Unit Processor Advanced Targeting Computer Protection Medium Armor Plating Weapon Enhanced Autogun Energy Gun Small Laser Energy Cannon Beam Cannon Ballistic Gun Enhanced Autogun Ballistic Cannon Flak Cannon Launcher Improved Grenade Launcher Slashing Weapon Axe Build | -11 -10 -10 -9 -9 -9 -8 -8 ------- Run | Yrd Mat Min Mat Min Exi Min Mat Slots Evolved 4 | . . . 2 . . . 2 Power . | . . . . . . . . Propulsion 2 | . . . 2 . . . . Utility 2 | . . . . . . . 2 Weapon . | . . . . . . . . Parts Attached 93 | . 13 2 40 . . 3 35 Power 17 | . 2 . 8 . . 1 6 Engine 12 | . 1 . 8 . . . 3 Core 5 | . 1 . . . . 1 3 Reactor . | . . . . . . . . Propulsion 30 | . 6 . 14 . . 1 9 Treads 25 | . 2 . 14 . . 1 8 Leg 4 | . 4 . . . . . . Wheel 1 | . . . . . . . 1 Hover . | . . . . . . . . Flight . | . . . . . . . . Utility 22 | . 2 1 9 . . 1 9 Device 8 | . 1 1 3 . . 1 2 Storage 2 | . 1 . . . . . 1 Processor 4 | . . . . . . . 4 Hackware . | . . . . . . . . Protection 8 | . . . 6 . . . 2 Artifact . | . . . . . . . . Weapon 24 | . 3 1 9 . . . 11 Energy Gun 7 | . 2 1 1 . . . 3 Energy Cannon 5 | . 1 . 2 . . . 2 Ballistic Gun 8 | . . . 5 . . . 3 Ballistic Cannon 1 | . . . . . . . 1 Launcher 2 | . . . 1 . . . 1 Special Weapon . | . . . . . . . . Impact Weapon . | . . . . . . . . Slashing Weapon 1 | . . . . . . . 1 Piercing Weapon . | . . . . . . . . Special Melee Weapon . | . . . . . . . . Unidentified Prototypes 8 | . . . 4 . . . 4 Corrupted Parts 1 | . . . 1 . . . . System Corruption 7 | . . . 7 . . . . Parts Lost 26 | . 2 . 10 . . . 14 Power 3 | . 1 . 1 . . . 1 Propulsion 15 | . . . 6 . . . 9 Utility 4 | . . . 2 . . . 2 Weapon 4 | . 1 . 1 . . . 2 Highest Loss Streak 9 | . 1 . 2 . . . 9 To Critical Strikes 1 | . . . 1 . . . . Average Backups 14 | . 10 14 14 15 15 14 14 Power 2 | . 2 4 2 3 2 2 2 Propulsion 4 | . 4 4 4 6 6 6 4 Utility 3 | . . 1 4 4 4 3 3 Weapon 2 | . 2 4 2 2 2 2 2 Tool/Special . | . . . . . . . . Unused Backups 33 | . 9 . 8 . 1 . 15 Power 9 | . 1 . 3 . 1 . 4 Propulsion 11 | . 5 . 1 . . . 5 Utility 7 | . 2 . 1 . . . 4 Weapon 4 | . 1 . 3 . . . . Tool/Special 2 | . . . . . . . 2 Average Slot Usage (%) 95 | . 97 100 94 100 79 100 94 Engine 7 | . 10 14 9 11 11 3 . Core 2 | . 1 . . . . 7 8 Treads 32 | . 10 28 41 44 44 44 30 Leg 3 | . 17 . . . . . . Device 4 | . 8 14 2 . . 8 2 Storage 12 | . 18 14 11 11 11 11 9 Processor 4 | . . . . . . . 18 Protection 5 | . . . 7 11 11 2 5 Energy Gun 2 | . 8 14 . . . . . Energy Cannon 3 | . 6 14 . . . . 3 Ballistic Gun 13 | . 12 . 19 22 2 21 6 Ballistic Cannon 1 | . . . . . . . 6 Peak Build Rating 31 | . 9 10 23 22 23 26 31 Average Rating 18 | . 7 9 16 22 15 23 27 On Entrance 15 | 6 6 8 10 22 22 23 26 Avg Prop Armor Cover (%) 17 | . . . . . . . 17 Naked Turns . | . . . . . . . . Heaviest Build 43 | 13 33 32 42 41 41 41 43 Greatest Support 80 | 20 40 40 80 80 80 80 80 Greatest Overweight (x) 3 | . 1 . . . . . 3 Average Overweight (x) . | . . . . . . . . Largest Inventory Capacity 15 | . 15 15 15 15 15 15 15 Average Capacity 14 | . 14 15 15 15 15 15 15 Most Carried 15 | . 15 15 15 15 15 15 15 Average Carried 14 | . 10 14 14 15 14 14 14 Final Capacity 15 | 8 15 15 15 15 15 15 5 Final Carried 15 | 6 12 15 15 15 15 15 5 Class Distribution -------------------- 64% | Mutant 34% | Scavenger-Mutant Dominant Class ---------------- Mutant | -10/Materials Mutant | -10/Mines Mutant | -9/Materials Mutant | -9/Mines Mutant | -9/Exiles Scavenger-Mutant | -8/Mines Scavenger-Mutant | -8/Materials Resources | -11 -10 -10 -9 -9 -9 -8 -8 ----------- Run | Yrd Mat Min Mat Min Exi Min Mat Matter Collected 4122 | 200 266 20 1903 139 . 361 1233 Remotely . | . . . . . . . . Salvage Created 5274 | . 769 123 2407 124 . 277 1574 Parts 321 | . 63 12 135 6 . 13 92 Haulers Intercepted 13 | . 2 . 5 . . . 6 Recyclers Shooed 6 | . 2 . 2 . . . 2 Parts Field Recycled . | . . . . . . . . Retrieved Matter . | . . . . . . . . Parts Self-Destructed . | . . . . . . . . Prevented . | . . . . . . . . Parts Restored . | . . . . . . . . Kills | -11 -10 -10 -9 -9 -9 -8 -8 ------- Run | Yrd Mat Min Mat Min Exi Min Mat Combat Hostiles Destroyed 119 | . 17 5 54 3 . 7 33 Guns 71 | . 14 4 44 3 . 3 3 Cannons 27 | . 2 1 4 . . . 20 AOE 20 | . . . 6 . . 4 10 Classes Destroyed 13 | . 6 . 7 . . . . Worker 14 | . 6 . 2 . . . 6 Builder 4 | . 1 . 1 . . 1 1 Tunneler 3 | . . . 1 . . 1 1 Hauler 13 | . 2 . 5 . . . 6 Recycler 7 | . . . 2 . . 2 3 Mechanic 1 | . . . 1 . . . . Operator 3 | . . . 2 . . . 1 Watcher 7 | . 2 . . . . . 5 Swarmer 31 | . 6 3 7 . . 4 11 Grunt 66 | . 11 2 33 3 . 3 14 Brawler 1 | . . . 1 . . . . Duelist 3 | . . . 3 . . . . Sentry 18 | . . . 10 . . . 8 Best Kill Streak 7 | . 5 3 6 3 . 4 7 Combat Bots Only 6 | . 3 3 4 3 . 4 6 Max Kills in Single Turn 3 | . 2 1 3 1 . 3 2 Gunslinging 1 | . . . 1 . . 1 . Exploded 3 | . . . 3 . . 3 2 Melee . | . . . . . . . . Uniques/NPCs Destroyed . | . . . . . . . . Combat | -11 -10 -10 -9 -9 -9 -8 -8 -------- Run | Yrd Mat Min Mat Min Exi Min Mat Hostile Shots Fired 569 | . 68 25 255 5 . 31 185 Missed 159 | . 18 6 70 3 . 6 56 Hits 410 | . 50 19 185 2 . 25 129 Melee 6 | . . . 6 . . . . Projectile 404 | . 50 19 179 2 . 25 129 Critical Strikes 12 | . . . 6 . . 1 5 Damage Taken 6541 | . 593 178 2730 21 . 496 2523 Core 994 | . 102 14 213 . . 94 571 Absorbed by Shields . | . . . . . . . . Regen/Repaired (Parts) 82 | . . . 82 . . . . Core Remaining (%) 58 | 100 . 53 . . . 23 . Volleys Fired 403 | . 57 10 188 5 . 23 120 Largest 2 | . 2 2 2 2 . 2 2 Hottest 150 | . 80 125 128 50 . 50 150 Shots Fired 728 | . 106 19 350 10 . 42 201 Gun 519 | . 83 9 319 10 . 39 59 Cannon 193 | . 23 10 28 . . . 132 Launcher 16 | . . . 3 . . 3 10 Special . | . . . . . . . . Kinetic 530 | . 51 . 306 10 . 39 124 Thermal 182 | . 55 19 41 . . . 67 Explosive 16 | . . . 3 . . 3 10 Electromagnetic . | . . . . . . . . Robot Hit Streak 20 | . 7 13 20 7 . 9 20 Robot Miss Streak 7 | . 3 1 7 1 . 3 6 Penetration Max . | . . . . . . . . Secondary Targets 8 | . 1 . 6 . . 1 . Max Gunslinging Chain 1 | . 1 . 1 . . 1 . Shots Hit Robots 516 | . 62 14 242 8 . 27 163 Core Hits 303 | . 37 8 115 6 . 11 126 Critical Kills 3 | . . . 3 . . . . Critical Parts Destroyed 2 | . . . 2 . . . . Critical Strikes 5 | . . . 5 . . . . Destroy 5 | . . . 5 . . . . Melee Attacks 25 | . . . . . . . 25 Impact . | . . . . . . . . Slashing 25 | . . . . . . . 25 Piercing . | . . . . . . . . Sneak Attacks 1 | . . . . . . . 1 Combat Hostiles . | . . . . . . . . Follow-up Attacks . | . . . . . . . . Damage Inflicted 10995 | . 922 197 4704 186 . 653 4333 Guns 5633 | . 590 107 3658 143 . 468 667 Cannons 3163 | . 308 71 388 . . . 2396 Explosions 1639 | . . . 555 . . 158 926 Melee 298 | . . . . . . . 298 Ramming 262 | . 24 19 103 43 . 27 46 Kinetic 6511 | . 391 . 3546 143 . 468 1963 Thermal 2393 | . 507 178 522 . . . 1186 Explosive 1390 | . . . 392 . . 158 840 Electromagnetic 141 | . . . 141 . . . . Impact . | . . . . . . . . Slashing 298 | . . . . . . . 298 Piercing . | . . . . . . . . Highest Corruption 10 | . . . 10 10 10 10 . Average Corruption 9 | . . . 9 10 10 10 . Corruption Purged . | . . . . . . . . Corruption Blocked . | . . . . . . . . Effects 190 | . . . 100 38 23 29 . Message Errors 58 | . . . 30 11 5 12 . Matter Fused 44 | . . . 25 6 6 7 . Heat Flow Errors 19 | . . . 7 3 3 6 . Energy Discharges 18 | . . . 8 8 1 1 . Parts Rejected 4 | . . . 4 . . . . Parts Fused 3 | . . . 1 2 . . . Data Loss (minor) 22 | . . . 9 5 6 2 . Data Loss (major) 6 | . . . 4 1 1 . . Misfires 6 | . . . 6 . . . . Alerts 3 | . . . . 2 1 . . Misdirections 2 | . . . 2 . . . . Weapon Failures 5 | . . . 4 . . 1 . Overload Shots . | . . . . . . . . Overflow Damage 115 | . 18 . 13 2 . . 82 Projectiles 18 | . 18 . . . . . . Explosions 59 | . . . 13 . . . 46 Melee 38 | . . . . 2 . . 36 Knockbacks 40 | . . . 1 1 . . 38 Impact 3 | . . . 1 1 . . 1 Kinetic 32 | . . . . . . . 32 Secondary 5 | . . . . . . . 5 Self-Inflicted Damage 328 | . . . 327 . . . 1 Shots 5 | . . . 5 . . . . Rammed 37 | . 5 3 14 4 . 5 6 Targets Rammed 49 | . 8 3 16 4 . 9 9 Kicked 3 | . 3 . . . . . . Crushed 9 | . . . 2 . . 4 3 Highest Temperature 575 | . 96 132 384 243 114 575 150 Average Temperature 70 | . 35 58 69 93 54 182 22 Received Heat Transfer 2313 | . 246 42 1014 12 . 225 774 Effects 4 | . . . 1 1 . 2 . Shutdowns 1 | . . . . . . 1 . Interference 1 | . . . . 1 . . . Matter Decay 1 | . . . 1 . . . . Damage (core) 1 | . . . . . . 1 . Siege Activations . | . . . . . . . . Martial Activations . | . . . . . . . . Shielding Activations . | . . . . . . . . Robots Disrupted . | . . . . . . . . Combat Hostiles . | . . . . . . . . Robots Corrupted . | . . . . . . . . Combat Hostiles . | . . . . . . . . Parts Fried . | . . . . . . . . Impact Corruptions 1 | . . . . 1 . . . Robots Melted 2 | . 1 . . . . . 1 Combat Hostiles 1 | . 1 . . . . . . Parts Melted 4 | . . 1 2 . . . 1 Heat Transferred 4190 | . 1079 384 1049 . . . 1678 Parts Sabotaged . | . . . . . . . . Parts Stolen . | . . . . . . . . Parts Stripped . | . . . . . . . . Power Chain Reactions 1 | . . . 1 . . . . Alert | -11 -10 -10 -9 -9 -9 -8 -8 ------- Run | Yrd Mat Min Mat Min Exi Min Mat Maximum Alert Level 3 | . . . 3 1 . . 2 Low Security (%) 65 | . 100 100 14 71 . 100 72 Level 1 21 | . . . 48 28 . . 20 Level 2 12 | . . . 35 . . . 6 Level 3 . | . . . 1 . . . . Level 4 . | . . . . . . . . Level 5 . | . . . . . . . . High Security . | . . . . . . . . Max Security . | . . . . . . . . Sterilizations 1 | . . . 1 . . . . Peak Influence 715 | . 141 124 715 262 . 106 497 Initial 262 | . . 44 . 262 . . 24 Average 171 | . 55 35 358 118 . 18 158 Influence Increases 3881 | . 581 120 1757 78 . 202 1143 Destroy 0b10 Robot/C 2380 | . 340 100 1080 60 . 140 660 Destroy 0b10 Robot/NC 260 | . 55 . 70 . . 20 115 Destroy Leader 550 | . 78 20 250 10 . 20 172 Allied During Kill 8 | . . . . 8 . . . Successful Hack 106 | . 32 . 55 . . . 19 Select Force Hacks 120 | . 60 . 30 . . . 30 Disable Machine 180 | . . . 135 . . . 45 Destroy Structure 157 | . 1 . 62 . . 22 72 Partial Spotted 15 | . . . 15 . . . . Lose Combat Pursuer 105 | . 15 . 60 . . . 30 Influence Decreases 3486 | . 466 235 1082 753 . 138 812 Entered New Map 524 | . . 71 . 413 . . 40 Time Decay 2430 | . 446 164 682 340 . 138 660 Lost Part 232 | . 20 . 100 . . . 112 Purge Threat 300 | . . . 300 . . . . Squads Dispatched 20 | . 5 . 9 . . . 6 Investigation 10 | . 5 . 4 . . . 1 Extermination . | . . . . . . . . Reinforcement 8 | . . . 3 . . . 5 Assault 2 | . . . 2 . . . . Garrison . | . . . . . . . . Intercept . | . . . . . . . . Searches Triggered . | . . . . . . . . Construction Impeded 3 | . . . . . . . 3 Haulers Reinforced . | . . . . . . . . Active Scanning Responses . | . . . . . . . . Cargo Convoy Interrupts . | . . . . . . . . Stealth | -11 -10 -10 -9 -9 -9 -8 -8 --------- Run | Yrd Mat Min Mat Min Exi Min Mat Distress Signals 7 | . 1 . 3 . . . 3 Communications Jammed . | . . . . . . . . Distress Signals . | . . . . . . . . Times Spotted 167 | . 21 5 85 3 . 6 47 Peak Tracking Total 9 | . 3 3 9 3 . 4 4 Tactical Retreats 6 | . 1 . 3 . . . 2 Traps | -11 -10 -10 -9 -9 -9 -8 -8 ------- Run | Yrd Mat Min Mat Min Exi Min Mat Traps Triggered 13 | . 4 . 3 . . . 6 Indirectly . | . . . . . . . . Trap Hack Attempts . | . . . . . . . . Triggered . | . . . . . . . . Disarmed . | . . . . . . . . Reprogrammed . | . . . . . . . . Reused . | . . . . . . . . Traps Extracted . | . . . . . . . . Installed . | . . . . . . . . Triggered . | . . . . . . . . Machines | -11 -10 -10 -9 -9 -9 -8 -8 ---------- Run | Yrd Mat Min Mat Min Exi Min Mat Machines Disabled 13 | . . . 10 . . . 3 Max in Single Turn 4 | . . . 4 . . . 1 Garrison Access 1 | . . . . . . . 1 Machines Repaired . | . . . . . . . . Machines Dismantled . | . . . . . . . . Machines Sabotaged . | . . . . . . . . Overloaded Fab Kills . | . . . . . . . . Hacking | -11 -10 -10 -9 -9 -9 -8 -8 --------- Run | Yrd Mat Min Mat Min Exi Min Mat Machines Accessed 31 | . 10 . 11 . 2 . 8 Terminals 21 | . 8 . 8 . . . 5 Fabricators . | . . . . . . . . Repair Stations 1 | . . . 1 . . . . Recycling Units 4 | . 2 . 1 . . . 1 Scanalyzers 2 | . . . 1 . . . 1 Garrison Access 1 | . . . . . . . 1 Total Hacks 107 | . 33 . 38 . 6 . 30 Successful 58 | . 17 . 19 . 6 . 16 Failed 48 | . 15 . 19 . . . 14 Catastrophic 8 | . 3 . 5 . . . . Database Lockouts 1 | . 1 . . . . . . Manual 71 | . 31 . 23 . 1 . 16 Terminals 78 | . 30 . 28 . . . 20 Fabricators . | . . . . . . . . Repair Stations 3 | . . . 3 . . . . Recycling Units 10 | . 3 . 4 . . . 3 Scanalyzers 9 | . . . 3 . . . 6 Garrison Access 1 | . . . . . . . 1 Terminal Hacks 18 | . 4 . 8 . 6 . . Record 5 | . . . . . 5 . . Robot Analysis 4 | . 4 . . . . . . Branch Access Points 1 | . . . 1 . . . . Alert Level 4 | . . . 4 . . . . Unreport Threat 2 | . . . 2 . . . . Dispatch Records 1 | . . . 1 . . . . Proto ID Catalog 1 | . . . . . 1 . . Fabricator Hacks . | . . . . . . . . Repair Station Hacks 2 | . . . 2 . . . . Scan Component 1 | . . . 1 . . . . Repair 1 | . . . 1 . . . . Recycling Unit Hacks . | . . . . . . . . Scanalyzer 8 | . . . 2 . . . 6 Insert Component 3 | . . . 1 . . . 2 Analyze 4 | . . . 1 . . . 3 Retrieve Study 1 | . . . . . . . 1 Garrison Access Hacks 1 | . . . . . . . 1 Seal Access 1 | . . . . . . . 1 Unauthorized Hacks 29 | . 13 . 7 . . . 9 Terminals 25 | . 11 . 6 . . . 8 Botnet 12 | . 5 . 3 . . . 4 Operators 2 | . . . 1 . . . 1 Skim 11 | . 6 . 2 . . . 3 Fabricators . | . . . . . . . . Repair Stations . | . . . . . . . . Recycling Units 4 | . 2 . 1 . . . 1 Tunnel 4 | . 2 . 1 . . . 1 Scanalyzers . | . . . . . . . . Garrison Access . | . . . . . . . . Data Cores Recovered . | . . . . . . . . Used . | . . . . . . . . Hacking Detections 27 | . 9 . 11 . . . 7 Full Trace Events 4 | . . . 3 . . . 1 Feedback Events . | . . . . . . . . Feedback Blocked . | . . . . . . . . Robot Schematics Acquired . | . . . . . . . . Robots Built . | . . . . . . . . Authchips . | . . . . . . . . Time . | . . . . . . . . Total Robot Build Rating . | . . . . . . . . Part Schematics Acquired 3 | . . . 1 . . . 2 Parts Built . | . . . . . . . . Authchips . | . . . . . . . . Time . | . . . . . . . . Total Part Build Rating . | . . . . . . . . Part Studies Acquired 1 | . . . . . . . 1 Parts Repaired 1 | . . . 1 . . . . Time 32 | . . . 32 . . . . Parts Recycled . | . . . . . . . . Recycled Matter . | . . . . . . . . Retrieved Matter . | . . . . . . . . Retrieved Components . | . . . . . . . . Parts Scanalyzed 3 | . . . 1 . . . 2 Part Schematics Acquired 3 | . . . 1 . . . 2 Parts Damaged . | . . . . . . . . Bothacking | -11 -10 -10 -9 -9 -9 -8 -8 ------------ Run | Yrd Mat Min Mat Min Exi Min Mat Used RIF Installer . | . . . . . . . . Robots Hacked . | . . . . . . . . Non-combat . | . . . . . . . . Combat . | . . . . . . . . Robot Hacks Applied . | . . . . . . . . Relay Couplers Released . | . . . . . . . . Fabnet Peak Effective % . | . . . . . . . . Robots Rewired . | . . . . . . . . Allies Hacked . | . . . . . . . . Hacks Repelled . | . . . . . . . . Allies | -11 -10 -10 -9 -9 -9 -8 -8 -------- Run | Yrd Mat Min Mat Min Exi Min Mat Total Allies 2 | . . . . 2 . . . Largest Group 2 | . . . . 2 2 . . Highest-Rated Group 54 | . . . . 54 54 . . Highest-Rated Ally 31 | . . . . 31 31 . . Total Orders . | . . . . . . . . Ally Attacks . | . . . . . . . . Total Damage . | . . . . . . . . Kills . | . . . . . . . . Allies Corrupted . | . . . . . . . . Allies Melted . | . . . . . . . . Intel | -11 -10 -10 -9 -9 -9 -8 -8 ------- Run | Yrd Mat Min Mat Min Exi Min Mat Active Infowar (turns) 298 | . . . 1 . . . 297 Optics 297 | . . . . . . . 297 Sensors 1 | . . . 1 . . . . Terrain 33 | . . . . . . . 33 Robot Analysis Total 4 | . 4 . . . . . . Derelict Logs Recovered 2 | . . 1 . 1 . . . Drone Launches . | . . . . . . . . Drone Recoveries . | . . . . . . . . Exploration | -11 -10 -10 -9 -9 -9 -8 -8 ------------- Run | Yrd Mat Min Mat Min Exi Min Mat Turns Passed 10613 | . 1945 623 2834 935 666 859 2751 Spaces Moved 5262 | 1 984 366 1336 570 411 491 1103 Core 1 | . . . . . . . 1 Treads 4445 | . 382 366 1336 570 411 491 889 Legs 603 | 1 602 . . . . . . Wheels 213 | . . . . . . . 213 Hover . | . . . . . . . . Flight . | . . . . . . . . Fastest Speed 50 | 120 120 160 160 160 160 160 50 Average Speed 161 | 120 173 160 160 160 160 160 155 Slowest Speed 250 | 120 190 160 160 160 160 162 250 Overloaded Moves . | . . . . . . . . Propulsion Burnouts . | . . . . . . . . Robots Hopped . | . . . . . . . . Potential Cave-ins . | . . . . . . . . Cave-ins Triggered . | . . . . . . . . Exploration Rate (%) 72 | 2 93 78 89 99 53 89 79 Regions Visited 7 Branch Regions 4 Pre-discovered Areas 7 | . 4 . 1 . 1 . 1 Known Exits Taken 4 | . . 1 1 . 1 1 . Unknown Exits Taken 3 | 1 1 . . 1 . . . Scrap Searched 4 | . . 1 . 2 . 1 . Spaces Dug 8 | . . . . . . . 8 Terrain Destroyed 178 | . . . 57 . . 28 93 Melee 8 | . . . . . . . 8 Projectile 20 | . . . . . . . 20 AOE 150 | . . . 57 . . 28 65 Terrain Rammed . | . . . . . . . . Walls Destroyed . | . . . . . . . . Machines Disabled . | . . . . . . . . Actions | -11 -10 -10 -9 -9 -9 -8 -8 --------- Run | Yrd Mat Min Mat Min Exi Min Mat Total 6635 | . 1112 382 1722 586 420 530 1883 Wait 646 | . 33 1 72 6 . 2 532 Move 5255 | . 983 365 1335 569 410 490 1103 Hop . | . . . . . . . . Pick Up 45 | . 9 1 24 1 1 . 9 Fast Attach 30 | . 3 . 9 . 4 . 14 Attach 16 | . 2 . 12 . . . 2 Detach 2 | . 1 . 1 . . . . Swap 99 | . 8 2 38 . . 5 46 Drop 65 | . 8 . 27 1 5 1 23 Fire 403 | . 57 10 188 5 . 23 120 Melee 25 | . . . . . . . 25 Ram 1 | . . . . . . . 1 Kick 3 | . 3 . . . . . . Crush 45 | . 5 3 16 4 . 9 8 Escape Stasis . | . . . . . . . . Rewire . | . . . . . . . . Trap . | . . . . . . . . Miscellaneous . | . . . . . . . . Route ------- -11/Scrapyard -10/Materials (discovered 5 exits: *Mat x3 / [*Min] / Sub) -10/Mines (discovered 3 exits: *Mat x2 / *Sub) -9/Materials (discovered 4 exits: *Mat x3 / *Min) -9/Mines (discovered 3 exits: *Mat x2 / *Exi) -9/Exiles (discovered 2 exits: *Min x2) -8/Mines -8/Materials (discovered 3 exits: [*Fac x2] / [*Sto]) History --------- Turn | Location | Event 1 | -11/Scrapyard | Discovered new exit (range 0) 1 | -11/Scrapyard | Entered Materials 315 | -10/Materials | Build established: Mutant 507 | -10/Materials | Discovered new exit (range 15) 925 | -10/Materials | Discovered new exit (range 9) 926 | -10/Materials | Discovered new exit (range 11) 1068 | -10/Materials | Learned location of 2 exits from Subcaves 1078 | -10/Materials | Central database locked down 1111 | -10/Materials | Identified exit to Subcaves 1191 | -10/Materials | Learned 4 Recycling zone layouts 1213 | -10/Materials | Learned Storage emergency access door positions 1247 | -10/Materials | Identified exit to Materials 1247 | -10/Materials | Learned location of 2 exits from Materials 1290 | -10/Materials | Learned 2 Storage zone layouts 1946 | -10/Materials | Entered Mines 2004 | -10/Mines | Discovered exit to Materials (range 13) 2079 | -10/Mines | Found a damaged Exp. Sensor Array with a note attached 2083 | -10/Mines | Found Prototype Device 2105 | -10/Mines | Discovered exit to Subcaves (range 5) 2337 | -10/Mines | Discovered exit to Materials (range 11) 2492 | -10/Mines | Assembled infested the area 2497 | -10/Mines | Assisted by a Guerilla fighting off Assembled 2569 | -10/Mines | Entered Materials 2569 | -9/Materials | Evolved 2 slots: Propulsion x2 2570 | -9/Materials | Identified exit to Mines 2571 | -9/Materials | Identified exit to Materials 2880 | -9/Materials | Build established: Scavenger-Mutant 3217 | -9/Materials | Build established: Mutant 3280 | -9/Materials | System corruption reached 10% 3487 | -9/Materials | Repaired Shotgun 3907 | -9/Materials | Identified Exp. Sensor Array 4569 | -9/Materials | First assault squad dispatched 5024 | -9/Materials | Discovered exit to Materials (range 16) 5062 | -9/Materials | Core integrity fell below 50% 5297 | -9/Materials | Sterilization system engaged 5297 | -9/Materials | Non-combat units ordered to evacuate 5397 | -9/Materials | Combat units ordered to evacuate 5403 | -9/Materials | Entered Mines 5517 | -9/Mines | Learned Materials stockpile data 5566 | -9/Mines | Discovered exit to Materials (range 14) 5667 | -9/Mines | Deemed a non-threat by the Exiles lab entrance 5667 | -9/Mines | Discovered new exit (range 5) 5910 | -9/Mines | Discovered exit to Materials (range 10) 5943 | -9/Mines | Received a Rocket Launcher from a helpful Derelict 6338 | -9/Mines | Entered Exiles 6338 | -9/Exiles | Accompanied by 2 allies 6339 | -9/Exiles | Identified exit to Mines 6368 | -9/Exiles | Led the pair of lost Derelicts to a safe place 6381 | -9/Exiles | Met 8R-AWN 6408 | -9/Exiles | Met EX-HEX 6451 | -9/Exiles | Met EX-BIN 6469 | -9/Exiles | Aligned with FarCom system 6471 | -9/Exiles | Given EX-Vault access code 6515 | -9/Exiles | Opened EX-Vault 6537 | -9/Exiles | Found Chronowheel 6571 | -9/Exiles | Warned to stay clear of 0b10 Research branches 6857 | -9/Exiles | Met EX-DEC 6867 | -9/Exiles | Learned location of Zion (-6) 7004 | -9/Exiles | Left Exiles lab with Chronowheel 7004 | -9/Exiles | Entered Mines 7508 | -8/Mines | Build established: Scavenger-Mutant 7822 | -8/Mines | Discovered exit to Materials (range 5) 7863 | -8/Mines | Entered Materials 7863 | -8/Materials | Evolved 2 slots: Utility x2 8299 | -8/Materials | Lost 3 parts (3n) 8557 | -8/Materials | Build established: Mutant 8858 | -8/Materials | Build established: Scavenger-Mutant 9353 | -8/Materials | Discovered new exit (range 10) 9673 | -8/Materials | Discovered new exit (range 15) 10382 | -8/Materials | Discovered new exit (range 4) 10585 | -8/Materials | Core integrity fell below 50% 10610 | -8/Materials | Core integrity fell below 20% 10614 | -8/Materials | Released all parts (3) 10614 | -8/Materials | Destroyed by H-61 Shepherd with Heavy Assault Cannon Last Messages --------------- 10562_ Acquired 7 matter. 10563_ Penetrated by Slug. 10564_ Acquired 3 matter. 10565_ Flak Cannon destroyed. 10574_ The unstable cave ceiling collapses. 10574_ 16 Matter crushed. 10575_ Hrd. Medium Armor Plating destroyed. 10581_ Penetrated by Slug. 10581_ Lgt. Treads destroyed. 10583_ Destroyed Dynamic Insulation System. 10588_ Mic. Nuclear Core destroyed. 10599_ Slug penetrates Wall. 10603_ Critical hit (Burn: +37). 10604_ Penetrated by Slug. 10604_ Lgt. Treads destroyed. 10608_ Adv. Targeting Computer destroyed. 10609_ Lgt. Treads destroyed. 10614_ Released Axe. 10614_ Released Lrg. Storage Unit. 10614_ Released Adv. Targeting Computer. Map ----- +----------------------------------------------------+ | | | | | | | | | | | | | | | | | | | | | | | | | | | | | ????????????????????????????????????????? | | ????????????????????????????????????????? | | ????????????????????????????????????????? | | ????????????????????????????????????????? | | ????????????????????????????????????????? | | ?????????????+#####?????????????????????? | | ?????????????? ?????????????????????? | | ??????????????? #?????????????????????? | | ???????????????# #####################?? | | ???????????????# ## # #?? | | ??????????????##% ## # #?? | | ???????+ #####!@!%; # #?? | | ???????# /*H/*] ; #?? | | ???????# ^==% g ####+######?? | | ???????# ##### % %;g #??# #??????? | | ???????#??????####;# #??# #??????# | | ??????????????????#; #### ######## | | ???????????????????# g + | | ???????????????????###################### | | ????????????????????????????????????????# | | ?????????????????##????????????????????## | | ????????Y????????#"##################### | | ??????????????????# | | ??????????????????# | | ??????????????????# | | ????????????????####+###### ############ | | ????????????????# ## #??????????## | | ????????????????#""" ## #???????????# | | ????????????????#""" ## #???????????# | | ????????????????#""" ## #???????????# | | ????????????????#""" ## #???????????# | | ????????????????# ## #???????????# | | ????????????????# ## #???????????# | | ???????????????## "T" / ## #???????????# | | ???????????????#" "# #???????????+ | | ???????????????##"######### #???????!???# | +----------------------------------------------------+ Best States ------------- Heat Dissipation 59 Energy Generation 15 Energy Capacity 280 Matter Stores 300 Matter Capacity 300 Sight Range 18 Terrain Scan Range 16 Terrain Scan Density 10 Armor Coverage 225 Evasion (%) 55 Targeting Accuracy 24 Recoil Reduction 4 Item Schematics ----------------- Hacking Suite | -9/Materials | Scanalyzed Imp. Flight Unit | -8/Materials | Scanalyzed Surge Thruster | -8/Materials | Scanalyzed Robot Schematics ------------------ None Fabricated ------------ Nothing Repaired ---------- Shotgun | 28% | -9/Materials Studied --------- Mni. Grenade Launcher | -8/Materials | Hacked Alien Tech Used ----------------- None Achievements -------------- None Challenges ------------ None Game ------ Seed PoweredRecoilAxe Manual? 0 Play Time 00:44:25 Cumulative 278.1 hours Start 2026.01.07 @ 19:36:12 End 2026.01.07 @ 20:20:31 Sessions 1 Manual Loads 0 Difficulty Rogue Special Mode None Game No. 355 Rogue 354 Adventurer 1 Explorer 0 Win Type - Total 2 Types 1/0/0/1/0/0/0/0/0/0 Lore% 76 Gallery% 67 Achievement% 56 Wizard Run 0 Options --------- Layout 0 ASCII 0 Keyboard 0 Movement Numpad Keybinds 0 Fullscreen 2 Font 24/Smallcaps Map View 76x50 Zoom Use 0% Tactical HUD 1 Map Filters NONE Filters NONE Steam 1 RUN: c505fbfa-a2fd-42aa-8021-8c2a5ce21be6